fUSD/lending_fUSD_20240719
["ID","MTS","AMOUNT","RATE_DAILY","PERIOD"]
[332639346,1721397043692,-1224.5387,0.00014,2]
[332639347,1721397043703,-1738.02113,0.00014,2]
[332639348,1721397043715,-1980.15860644,0.00014,2]
[332639349,1721397043726,-1310.01098762,0.00014,2]
[332639350,1721397043737,-41313.15151528,0.00014,2]
[332639351,1721397043748,-32462.4423999,0.00014,2]
[332639389,1721397046201,-241.08542107,0.00013542,2]
[332639399,1721397046467,-538.93621935,0.00013542,2]
[332639400,1721397046499,-32132.88739156,0.00014,2]
[332639401,1721397046511,-270.76493749,0.00014,2]
[332639402,1721397046535,-281.24162147,0.00013542,2]
[332639403,1721397046545,-6202.69017853,0.00014,2]
[332639404,1721397046558,-6182.47987388,0.00014,2]
[332639405,1721397046570,-2136.53960588,0.00014,2]
[332639406,1721397046583,-1947.44668,0.00014,2]
[332639407,1721397046595,-1837.04998909,0.00014,2]
[332639408,1721397046610,-37364.32685642,0.00014,2]
[332639409,1721397046622,-648.490752,0.00014,2]
[332639410,1721397046633,-2006.01148,0.00014,2]
[332639411,1721397046644,-522.23783259,0.00014,2]
[332639412,1721397046659,-26001.49655677,0.00014,2]
[332639413,1721397046671,-1626.7650935,0.00014,2]
[332639414,1721397046682,-6882.84595262,0.00014,2]
[332639415,1721397046693,-128559.96451438,0.00014,2]
[332639416,1721397046706,-447.60999904,0.00014,2]
[332639417,1721397046718,-2704.89128419,0.00014,2]
[332639418,1721397046731,-117309.0,0.00014,2]
[332639419,1721397046747,-2771.75030114,0.00014,2]
[332639420,1721397046758,-6362.28804746,0.00014,2]
[332639421,1721397050361,1024.8015,0.00012096,2]
[332639422,1721397093749,-12655.9032,0.00013082,2]
[332639423,1721397093773,-178.4,0.00013434,2]
[332639424,1721397094150,-3969.9594,0.00013442,2]
[332639425,1721397094173,-100000.0,0.00013442,2]
[332639426,1721397094195,-155.48722539,0.00013542,2]
[332639427,1721397094219,-4275.95065683,0.00013542,3]
[332639428,1721397094241,-652.36654686,0.00013542,2]
[332639429,1721397094263,-1000.0,0.000137,2]
[332639430,1721397094285,-2500.0,0.000137,2]
[332639431,1721397094307,-500.0,0.000137,2]
[332639432,1721397094328,-205.0,0.0001386,2]
[332639433,1721397094350,-278.31377295,0.00013999,2]
[332639434,1721397094371,-150.0,0.00013999,2]
[332639435,1721397094397,-205078.4621084,0.00014,2]
[332639436,1721397094421,-2000.0,0.00014,2]
[332639437,1721397094443,-200.0,0.00014,2]
[332639438,1721397102441,440.32052,0.00014,2]
[332639439,1721397105962,447.7161,0.00013442,2]
[332639440,1721397111611,301.2901,0.00013082,2]
[332639441,1721397113072,202.63259192,0.00013765,2]
[332639442,1721397121283,200.14960116,0.00013696,2]
[332639443,1721397122485,300.0,0.00014,2]
[332639444,1721397124756,187260.6318,0.00013442,2]
[332639445,1721397128765,634.19525011,0.0002,15]
[332639446,1721397145266,2255.60709,0.00014,2]
[332639447,1721397150193,726.27,0.00013825,2]
[332639448,1721397188076,366.93377,0.00014,2]
[332639449,1721397190537,264.03468326,0.00013999,2]
[332639450,1721397203994,274.14840341,0.00013999,2]
[332639451,1721397205734,300.0,0.00014,2]
[332639452,1721397206818,500.0,0.00013887,2]
[332639453,1721397207200,500.0,0.00013888,2]
[332639454,1721397208407,695.4253572,0.00013998,2]
[332639455,1721397210998,200.0,0.00013887,2]
[332639456,1721397211400,200.0,0.00013888,2]
[332639457,1721397217377,1000.0,0.000139,2]
[332639459,1721397222839,317.65,0.000139,2]
[332639460,1721397223841,500.0,0.00013802,2]
[332639461,1721397227590,22652.8397165,0.00013998,2]
[332639462,1721397230895,1879.67257,0.00014,2]
[332639463,1721397240209,100000.0,0.000139,2]
[332639464,1721397248384,374.55068035,0.00013999,2]
[332639465,1721397266407,290.83715981,0.00013999,2]
[332639466,1721397266441,1000.0,0.000139,2]
[332639467,1721397267143,492.21599629,0.00013999,2]
[332639468,1721397274317,305.77814,0.00014,2]
[332639469,1721397278965,911.1687039,0.000139,2]
[332639470,1721397278985,1588.8312961,0.000139,2]
[332639471,1721397290921,200.0,0.00013896,2]
[332639472,1721397290950,796.63488233,0.00013999,2]
[332639473,1721397318003,1566.39381,0.00014,2]
[332639474,1721397319971,327.380361,0.00013973,2]
[332639475,1721397325859,424.11,0.00011988,2]
[332639476,1721397335473,1425.9364692,0.00013998,2]
[332639477,1721397360825,254.81511,0.00014,2]
[332639478,1721397383338,587.26,0.00013903,2]
[332639479,1721397389234,30752.0255834,0.00013998,2]
[332639480,1721397404236,1305.32818,0.00014,2]
[332639481,1721397415805,324.14,0.00013932,2]
[332639482,1721397416172,1790.3351505,0.00013998,2]
[332639483,1721397446426,212.34593,0.00014,2]
[332639484,1721397448689,11675.9940293,0.00013998,2]
[332639485,1721397475703,192.3,0.00013918,2]
[332639486,1721397485035,207.0074405,0.00013998,2]
[332639487,1721397489850,1087.77348,0.00014,2]
[332639488,1721397498820,18396.7184472,0.00013998,2]
[332639489,1721397509549,23900.0,0.00013893,2]
[332639490,1721397540492,176.95494,0.00014,2]
[332639491,1721397546223,200.0,0.00013766,2]
[332639492,1721397551235,10866.7626662,0.00013998,2]
[332639493,1721397556996,454.96,0.0001385,2]
[332639494,1721397559298,155.0,0.00013999,2]
[332639495,1721397572421,156.62855918,0.00013999,2]
[332639496,1721397583989,906.4779,0.00014,2]
[332639497,1721397586137,333.6015442,0.00013998,2]
[332639498,1721397589577,5394.61164962,0.00013999,2]
[332639499,1721397626185,176.95494,0.00014,2]
[332639500,1721397628264,294.642324,0.00013973,2]
[332639501,1721397665551,394.57,0.00013947,2]
[332639502,1721397669585,755.39825,0.00014,2]
[332639503,1721397669769,-7177.0,0.00014008,2]
[332639504,1721397697576,3065.18159048,0.00013999,2]
[332639505,1721397703935,3398.95100233,0.00013999,2]
[332639506,1721397751079,15451.9318012,0.00013999,2]
[332639507,1721397866698,545.62075935,0.00013999,2]
[332639508,1721397874681,545.62075935,0.00013999,2]
[332639509,1721397879200,2334.01401381,0.00013995,2]
[332639510,1721397894584,293.63,0.00013699,2]
[332639511,1721397920759,265.178092,0.00013973,2]
[332639512,1721397926664,24755.04083467,0.00013999,2]
[332639513,1721397927089,402.9,0.00011791,2]
[332639514,1721397927213,155.0,0.00013999,2]
[332639515,1721397954481,250.0,0.00013699,2]
[332639516,1721397955744,9252.14906276,0.00013999,2]
[332639517,1721397969683,3454.49320771,0.00013699,2]
[332639518,1721397978943,155.45899596,0.00013699,2]
[332639519,1721397986451,290.94871821,0.00013699,2]
[332639520,1721397992607,1266.87800095,0.00013999,2]
[332639521,1721398035573,23900.0,0.00013752,2]
[332639522,1721398041775,1445.49306909,0.00013999,2]
[332639523,1721398061163,747.46851,0.0001387,2]
[332639524,1721398070322,411.93123748,0.00013999,2]
[332639525,1721398072367,329.23044534,0.00013999,2]
[332639526,1721398083190,591.75,0.0002,10]
[332639528,1721398109271,885.71,0.00013976,2]
[332639529,1721398172171,3112.40418631,0.00013999,2]
[332639531,1721398203363,500.0,0.00013996,2]
[332639534,1721398209925,383.70523226,0.00013956,2]
[332639535,1721398217949,249.31,0.0001396,2]
[332639536,1721398219289,238.660283,0.00013973,2]
[332639550,1721398233439,-150.0,0.00014004,2]
[332639551,1721398233449,-300.0,0.00014004,2]
[332639552,1721398233459,-34.55762474,0.00014005,2]
[332639553,1721398233471,-3991.62022813,0.00014005,2]
[332639554,1721398233480,-14595.8603348,0.00014005,2]
[332639555,1721398233490,-8641.6059249,0.00014005,2]
[332639556,1721398233500,-265.3444787,0.00014005,2]
[332639557,1721398233510,-23087.9304917,0.00014005,2]
[332639558,1721398233520,-1032.9055259,0.00014005,2]
[332639559,1721398233529,-1319.7749576,0.00014007,2]
[332639560,1721398233540,-5733.2846338,0.00014017,2]
[332639561,1721398233549,-402.9,0.00014055,2]
[332639562,1721398233560,-692.20345147,0.00014086,2]
[332639563,1721398233570,-269.71,0.00014144,2]
[332639564,1721398233580,-499.99,0.00014144,2]
[332639565,1721398233590,-150.99,0.00014261,2]
[332639566,1721398233600,-524.68,0.00014261,2]
[332639567,1721398233610,-492.74605523,0.00014261,2]
[332639568,1721398233620,-538.80407201,0.00014261,2]
[332639569,1721398233630,-600.0,0.00014281,2]
[332639570,1721398233640,-169.8426272,0.00014283,2]
[332639571,1721398233649,-178.16,0.00014293,2]
[332639572,1721398233660,-592.67151,0.0001443,2]
[332639573,1721398233670,-436.42077402,0.0001443,2]
[332639574,1721398233680,-5394.61164962,0.00014451,2]
[332639575,1721398233690,-14507.55221347,0.00014451,2]
[332639576,1721398233700,-282.05024149,0.00014519,2]
[332639577,1721398233709,-196.78621095,0.00014519,2]
[332639578,1721398233718,-294.54,0.00014546,2]
[332639579,1721398233727,-366.80013867,0.00014579,2]
[332639580,1721398233737,-188.85,0.00014627,2]
[332639581,1721398233747,-155.45794009,0.00014667,2]
[332639582,1721398233757,-3538.0,0.00014758,2]
[332639584,1721398233767,-1500.0,0.00014789,2]
[332639586,1721398233777,-5609.58158913,0.00014789,2]
[332639588,1721398233787,-238.660283,0.00014795,2]
[332639590,1721398233798,-202.7635,0.000148,2]
[332639592,1721398233808,-3520.9278,0.000148,2]
[332639594,1721398233818,-2561.57525169,0.000148,2]
[332639596,1721398233827,-4746.06713511,0.000148,2]
[332639598,1721398233837,-269.71,0.00014851,2]
[332639600,1721398233847,-293.2204,0.000149,2]
[332639601,1721398233856,-100000.0,0.000149,2]
[332639602,1721398233866,-1000.0,0.000149,2]
[332639603,1721398233875,-248.87966189,0.000149,2]
[332639604,1721398233885,-88428.9615369,0.0001499,2]
[332639605,1721398233896,-216.45576739,0.0001499,2]
[332639606,1721398233907,-151.41,0.0001499,2]
[332639607,1721398233917,-155.18426986,0.00014999,2]
[332639608,1721398233927,-465.43893877,0.00015,2]
[332639609,1721398233938,-242349.36255576,0.00015,2]
[332639610,1721398233954,-1904.4975643,0.00015,2]
[332639611,1721398233966,-671.7555832,0.00015,2]
[332639612,1721398233982,-6107.10310454,0.00015,2]
[332639613,1721398233994,-24061.33155033,0.00015,2]
[332639614,1721398234011,-10359.65560738,0.00015,2]
[332639615,1721398234023,-2337.69321694,0.00015,2]
[332639618,1721398238614,-3605.99625915,0.00015,2]
[332639620,1721398238625,-1010.29713101,0.00015,2]
[332639625,1721398238664,-1001.96097993,0.00015,2]
[332639626,1721398238703,-1251.8572843,0.00015,2]
[332639627,1721398238715,-8454.59295004,0.00015,2]
[332639628,1721398238835,-61975.37285971,0.00015,2]
[332639629,1721398238844,-150.0,0.00015,2]
[332639630,1721398238854,-173.48,0.00015183,2]
[332639631,1721398238864,-1000.0,0.000153,2]
[332639632,1721398238873,-420.0,0.00015342,2]
[332639633,1721398238882,-156.94537485,0.00015369,2]
[332639634,1721398238892,-159.32598087,0.00015369,2]
[332639635,1721398238901,-162.41487813,0.00015369,2]
[332639636,1721398238910,-269.71,0.00015558,2]
[332639637,1721398238919,-454.96,0.00015581,2]
[332639638,1721398238929,-180.0,0.000156,5]
[332639639,1721398238938,-238.660283,0.00015616,2]
[332639640,1721398238948,-324.14,0.00015674,2]
[332639641,1721398238957,-540.25037661,0.00015723,2]
[332639642,1721398238969,-345.45962339,0.00015723,2]
[332639643,1721398238981,-1000.0,0.000158,2]
[332639644,1721398238991,-1920.4044,0.00015836,2]
[332639645,1721398239002,-252.07092672,0.0001587,2]
[332639646,1721398239011,-251.80405807,0.0001587,2]
[332639647,1721398239022,-203.31981496,0.0001587,2]
[332639648,1721398239032,-244.95389257,0.0001587,2]
[332639649,1721398239045,-1121.41583717,0.0001587,2]
[332639650,1721398239056,-155.0,0.0001587,2]
[332639651,1721398239066,-599.66510085,0.0001587,2]
[332639652,1721398239076,-189.35068202,0.0001587,2]
[332639653,1721398239086,-155.0,0.0001587,2]
[332639654,1721398239096,-1254.63523304,0.00015897,2]
[332639655,1721398239105,-155.41610123,0.00015897,2]
[332639656,1721398239115,-226.82821398,0.00015912,2]
[332639657,1721398239125,-5000.0,0.00016,2]
[332639658,1721398239134,-1000.0,0.00016,2]
[332639659,1721398239144,-748.76005696,0.00016033,2]
[332639661,1721398239153,-587.30286305,0.00016033,2]
[332639663,1721398239163,-159.74506103,0.00016033,2]
[332639665,1721398239174,-155.0,0.00016159,2]
[332639667,1721398239183,-525.2500057,0.00016159,2]
[332639669,1721398239193,-164.1062936,0.00016159,2]
[332639671,1721398239202,-294.54,0.00016162,2]
[332639673,1721398239212,-269.71,0.00016265,2]
[332639675,1721398239223,-1000.0,0.000163,2]
[332639677,1721398239232,-402.9,0.00016319,2]
[332639679,1721398239242,-155.0,0.00016358,2]
[332639681,1721398239252,-156.90643395,0.00016358,2]
[332639683,1721398239262,-1264.22761683,0.00016358,2]
[332639686,1721398239272,-747.46851,0.0001637,2]
[332639689,1721398239282,-3398.95100233,0.00016425,2]
[332639692,1721398239294,-158.66133679,0.00016425,2]
[332639695,1721398239304,-238.660283,0.00016438,2]
[332639698,1721398239314,-372.72881406,0.0001647,2]
[332639699,1721398239323,-3381.49017176,0.00016598,2]
[332639701,1721398239332,-169.5830375,0.00016697,2]
[332639703,1721398239341,-1500.0,0.000167,2]
[332639705,1721398239351,-1307.43475181,0.00016789,2]
[332639707,1721398239361,-198.66095259,0.00016799,2]
[332639709,1721398239370,-543.63483249,0.00016855,2]
[332639711,1721398239380,-2561.57525162,0.00016873,2]
[332639713,1721398239389,-4746.06713509,0.00016873,2]
[332639746,1721398239697,-364.84556817,0.00016897,2]
[332639748,1721398239712,-300.0,0.000169,6]
[332639750,1721398239722,-9252.14906276,0.00016948,2]
[332639752,1721398239731,-1391.57250963,0.00016949,2]
[332639754,1721398239741,-1391.57250963,0.00016949,2]
[332639756,1721398239750,-2835.14404974,0.00016949,2]
[332639757,1721398239759,-356.57124019,0.00016968,2]
[332639759,1721398239768,-527.41897284,0.00016968,2]
[332639761,1721398239778,-174.01178014,0.00016968,2]
[332639763,1721398239787,-3115.19689425,0.00016968,2]
[332639765,1721398239802,-251.66562766,0.00016968,2]
[332639767,1721398239811,-292.96482222,0.00016968,2]
[332639769,1721398239821,-210.46747941,0.00016968,2]
[332639771,1721398239830,-155.0,0.00016968,2]
[332639773,1721398239840,-155.06149887,0.00016968,2]
[332639775,1721398239849,-369.27763063,0.00016968,2]
[332639777,1721398239858,-156.19862631,0.00016968,2]
[332639779,1721398239868,-3972.36497652,0.00016968,2]
[332639781,1721398239878,-413.16817213,0.00016968,2]
[332639783,1721398239887,-194.69421538,0.00016968,2]
[332639785,1721398239897,-317.16565493,0.00016968,2]
[332639787,1721398239907,-155.79510977,0.00016968,2]
[332639789,1721398239916,-5829.82546237,0.00016969,2]
[332639791,1721398239926,-269.71,0.00016973,2]
[332639793,1721398239935,-1307.43475181,0.00016976,2]
[332639795,1721398239945,-16629.41,0.00016986,2]
[332639797,1721398239954,-161.42,0.00017,2]
[332639799,1721398239964,-2498.73739198,0.00017,2]
[332639801,1721398239975,-200.0,0.00017,2]
[332639803,1721398239989,-161.42,0.00017021,2]
[332639805,1721398239999,-161.42,0.00017042,2]
[332639807,1721398240009,-161.42,0.00017063,2]
[332639809,1721398240020,-161.42,0.00017085,2]
[332639811,1721398240030,-238.660283,0.0001726,2]
[332639813,1721398240039,-248.87966188,0.00017275,2]
[332639815,1721398240053,-454.96,0.00017312,2]
[332639817,1721398240065,-324.14,0.00017415,2]
[332639819,1721398240076,-885.71,0.0001747,2]
[332639821,1721398240085,-1257.0,0.000175,2]
[332639824,1721398240095,-294.54,0.00017779,2]
[332639826,1721398240104,-1307.43475181,0.0001779,2]
[332639828,1721398240114,-2399.0,0.000178,2]
[332639830,1721398240123,-526.0,0.000179,2]
[332639832,1721398240132,-238.660283,0.00018082,2]
[332639834,1721398240141,-2729.01843132,0.00018324,2]
[332639836,1721398240151,-173.48,0.00018405,2]
[332639838,1721398240160,-265.02858549,0.00018471,2]
[332639840,1721398240169,-169.85,0.00018497,2]
[332639842,1721398240179,-150.0,0.00018497,2]
[332639844,1721398240188,-150.0,0.00018497,2]
[332639845,1721398240198,-150.0,0.00018497,2]
[332639846,1721398240207,-150.0,0.00018497,2]
[332639847,1721398240216,-150.0,0.00018497,2]
[332639848,1721398240225,-150.0,0.00018497,2]
[332639849,1721398240235,-360.9,0.00018497,2]
[332639850,1721398240244,-150.0,0.00018497,2]
[332639851,1721398240253,-709.37,0.00018497,2]
[332639855,1721398240263,-150.0,0.00018497,2]
[332639857,1721398240272,-300.0,0.00018497,2]
[332639859,1721398240281,-150.0,0.00018497,2]
[332639860,1721398240291,-150.0,0.00018497,2]
[332639861,1721398240303,-425.19,0.00018497,2]
[332639862,1721398240313,-425.12,0.00018497,2]
[332639863,1721398240322,-151.33,0.00018497,2]
[332639864,1721398240332,-529.52,0.00018497,2]
[332639865,1721398240341,-529.52,0.00018497,2]
[332639866,1721398240351,-150.0,0.00018497,2]
[332639867,1721398240360,-165.19,0.00018497,2]
[332639868,1721398240369,-529.52,0.00018497,2]
[332639869,1721398240379,-150.0,0.00018497,2]
[332639870,1721398240388,-150.0,0.00018497,2]
[332639871,1721398240397,-165.19,0.00018497,2]
[332639872,1721398240407,-536.31,0.00018497,2]
[332639873,1721398240416,-165.19,0.00018497,2]
[332639874,1721398240425,-150.0,0.00018497,2]
[332639875,1721398240434,-529.43,0.00018497,2]
[332639876,1721398240443,-150.0,0.00018497,2]
[332639877,1721398240452,-155.96028081,0.00018499,2]
[332639878,1721398240461,-3922.30425543,0.00018523,2]
[332639879,1721398240470,-209.48505647,0.00018529,2]
[332639880,1721398240480,-155.0,0.00018529,2]
[332639881,1721398240490,-9527.55,0.00018533,2]
[332639882,1721398240500,-9620.85,0.00018533,2]
[332639883,1721398240509,-1173.73,0.00018533,2]
[332639884,1721398240518,-6262.11,0.00018533,2]
[332639885,1721398240528,-29999.99,0.00018533,2]
[332639886,1721398240537,-19999.99,0.00018533,2]
[332639887,1721398240549,-155.0,0.00018547,2]
[332639888,1721398240558,-402.9,0.00018583,2]
[332639889,1721398240568,-4000.0,0.000187,2]
[332639890,1721398240577,-747.46851,0.0001887,2]
[332639891,1721398240589,-238.660283,0.00018904,2]
[332639892,1721398240599,-1307.43475181,0.00018937,2]
[332639893,1721398240610,-2561.57525162,0.00018947,2]
[332639894,1721398240619,-4746.06713509,0.00018947,2]
[332639895,1721398240629,-250.0,0.00019,2]
[332639896,1721398240639,-155.19075681,0.00019,2]
[332639897,1721398240648,-454.96,0.00019043,2]
[332639898,1721398240658,-324.14,0.00019157,2]
[332639899,1721398240667,-293.63,0.00019178,2]
[332639900,1721398240677,-885.71,0.00019217,2]
[332639901,1721398240686,-300.0,0.00019319,2]
[332639902,1721398240697,-165.19,0.00019319,2]
[332639903,1721398240707,-150.0,0.00019319,2]
[332639904,1721398240717,-168.76,0.00019319,2]
[332639905,1721398240726,-165.16,0.00019319,2]
[332639906,1721398240736,-294.54,0.00019395,2]
[332639907,1721398240746,-5923.30850625,0.000195,2]
[332639908,1721398240755,-248.87966188,0.0001965,2]
[332639909,1721398240765,-2614.86950362,0.0001968,3]
[332639910,1721398240777,-620.0,0.0001969,2]
[332639911,1721398240786,-450.0,0.0001969,2]
[332639912,1721398240798,-445.0,0.0001969,2]
[332639913,1721398240807,-150.0,0.0001969,2]
[332639914,1721398240816,-2381.0,0.0001969,2]
[332639915,1721398240826,-150.0,0.0001969,2]
[332639916,1721398240836,-549.0,0.0001969,2]
[332639917,1721398240845,-150.0,0.00019691,2]
[332639918,1721398240855,-3281.0,0.00019691,2]
[332639919,1721398240864,-1993.0,0.00019691,2]
[332639920,1721398240874,-5182.0,0.00019691,2]
[332639921,1721398240884,-36606.76683809,0.00019691,2]
[332639922,1721398240897,-1722.23316191,0.00019691,2]
[332639923,1721398240907,-5824.0,0.00019691,2]
[332639924,1721398240916,-1666.0,0.00019691,2]
[332639925,1721398240927,-1201.0,0.00019691,2]
[332639926,1721398240936,-150.0,0.00019699,2]
[332639927,1721398240946,-150.0,0.00019709,2]
[332639928,1721398240956,-150.0,0.00019719,2]
[332639929,1721398240966,-300.0,0.00019719,2]
[332639930,1721398240976,-150.0,0.0001972,2]
[332639931,1721398240989,-150.0,0.00019724,2]
[332639932,1721398240999,-150.0,0.00019724,2]
[332639933,1721398241008,-238.660283,0.00019726,2]
[332639934,1721398241019,-150.0,0.00019728,2]
[332639935,1721398241028,-150.0,0.0001973,2]
[332639936,1721398241038,-150.0,0.00019731,2]
[332639937,1721398241049,-150.0,0.00019732,2]
[332639938,1721398241059,-150.0,0.00019734,2]
[332639939,1721398241070,-1307.43475181,0.00019739,3]
[332639940,1721398241079,-150.0,0.00019741,2]
[332639941,1721398241089,-150.0,0.00019743,2]
[332639942,1721398241099,-150.0,0.00019747,2]
[332639943,1721398241109,-150.0,0.00019749,2]
[332639944,1721398241119,-1500.0,0.00019749,2]
[332639945,1721398241129,-364.0545306,0.00019749,2]
[332639946,1721398241140,-150.0,0.00019752,2]
[332639947,1721398241150,-1500.0,0.00019753,2]
[332639948,1721398241161,-150.0,0.00019753,2]
[332639949,1721398241171,-419.88,0.00019753,2]
[332639950,1721398241181,-150.0,0.00019758,2]
[332639951,1721398241191,-300.0,0.00019759,2]
[332639952,1721398241200,-150.0,0.00019759,2]
[332639953,1721398241210,-150.0,0.0001976,2]
[332639954,1721398241220,-150.0,0.00019762,2]
[332639955,1721398241230,-150.0,0.00019767,2]
[332639956,1721398241240,-150.0,0.00019771,2]
[332639957,1721398241250,-150.0,0.00019771,2]
[332639958,1721398241259,-150.0,0.00019771,2]
[332639959,1721398241270,-150.0,0.00019772,2]
[332639960,1721398241279,-150.0,0.00019784,2]
[332639961,1721398241289,-150.0,0.00019787,2]
[332639962,1721398241301,-300.0,0.00019788,2]
[332639963,1721398241312,-1500.0,0.00019788,2]
[332639964,1721398241322,-1500.0,0.0001979,2]
[332639965,1721398241332,-150.0,0.0001979,2]
[332639966,1721398241341,-1500.0,0.00019793,2]
[332639967,1721398241351,-150.0,0.00019793,2]
[332639968,1721398241360,-150.0,0.00019793,2]
[332639969,1721398241369,-150.0,0.00019795,2]
[332639970,1721398241379,-150.0,0.00019795,2]
[332639971,1721398241388,-150.0,0.00019797,2]
[332639972,1721398241397,-202.70953531,0.00019797,2]
[332639973,1721398241406,-150.0,0.00019797,2]
[332639974,1721398241416,-300.0,0.000198,2]
[332639975,1721398241425,-150.0,0.000198,2]
[332639976,1721398241434,-300.0,0.00019804,2]
[332639977,1721398241443,-150.0,0.00019808,2]
[332639978,1721398241453,-150.0,0.00019809,2]
[332639979,1721398241462,-150.0,0.00019809,2]
[332639980,1721398241471,-150.0,0.00019813,2]
[332639981,1721398241481,-150.0,0.00019816,2]
[332639982,1721398241491,-150.0,0.00019817,2]
[332639983,1721398241500,-150.0,0.00019817,2]
[332639984,1721398241509,-150.0,0.0001982,2]
[332639985,1721398241518,-150.0,0.00019822,2]
[332639986,1721398241527,-150.0,0.00019823,2]
[332639987,1721398241537,-300.0,0.00019823,2]
[332639988,1721398241549,-150.0,0.00019824,2]
[332639989,1721398241559,-150.0,0.00019829,2]
[332639990,1721398241569,-150.0,0.0001983,2]
[332639991,1721398241578,-150.0,0.00019832,2]
[332639992,1721398241588,-150.0,0.00019842,2]
[332639993,1721398241598,-150.0,0.00019842,2]
[332639994,1721398241609,-150.0,0.00019844,2]
[332639995,1721398241619,-150.0,0.00019846,2]
[332639996,1721398241629,-150.0,0.00019847,2]
[332639997,1721398241639,-150.0,0.00019853,2]
[332639998,1721398241648,-150.0,0.00019858,2]
[332639999,1721398241658,-150.0,0.00019867,2]
[332640000,1721398241668,-150.0,0.00019868,2]
[332640001,1721398241678,-150.0,0.00019868,2]
[332640002,1721398241688,-300.0,0.00019871,2]
[332640003,1721398241698,-150.0,0.00019872,2]
[332640004,1721398241710,-150.0,0.00019872,2]
[332640005,1721398241719,-300.0,0.00019875,2]
[332640006,1721398241730,-150.0,0.00019877,2]
[332640007,1721398241740,-150.0,0.00019879,2]
[332640008,1721398241750,-150.0,0.00019879,2]
[332640009,1721398241760,-150.0,0.0001988,2]
[332640010,1721398241769,-271.81527384,0.00019881,2]
[332640011,1721398241779,-150.0,0.00019887,2]
[332640012,1721398241790,-150.0,0.00019891,2]
[332640013,1721398241803,-150.0,0.00019893,2]
[332640014,1721398241813,-150.0,0.00019895,2]
[332640015,1721398241823,-150.0,0.00019896,2]
[332640016,1721398241832,-150.0,0.00019896,2]
[332640017,1721398241842,-150.0,0.00019897,2]
[332640018,1721398241851,-150.0,0.00019899,2]
[332640019,1721398241860,-300.0,0.00019901,2]
[332640020,1721398241869,-300.0,0.00019902,2]
[332640021,1721398241878,-150.0,0.00019904,2]
[332640022,1721398241888,-150.0,0.00019905,2]
[332640023,1721398241897,-150.0,0.00019907,2]
[332640024,1721398241907,-150.0,0.00019907,2]
[332640025,1721398241917,-300.0,0.0001991,2]
[332640026,1721398241927,-150.0,0.00019911,2]
[332640027,1721398241938,-150.0,0.00019912,2]
[332640028,1721398241948,-536.94374619,0.00019919,2]
[332640029,1721398241958,-150.0,0.0001992,2]
[332640030,1721398241968,-150.0,0.00019921,2]
[332640031,1721398241980,-150.0,0.00019921,2]
[332640032,1721398241991,-150.0,0.00019922,2]
[332640033,1721398242000,-150.0,0.00019923,2]
[332640034,1721398242010,-150.0,0.00019923,2]
[332640035,1721398242022,-150.0,0.00019924,2]
[332640036,1721398242033,-150.0,0.00019924,2]
[332640037,1721398242043,-150.0,0.00019926,2]
[332640038,1721398242054,-150.0,0.00019928,2]
[332640039,1721398242069,-150.0,0.00019933,2]
[332640040,1721398242078,-150.0,0.00019933,2]